Cogmind - Beta 14 @@@ ROGUE MODE // 2024.11.15 @ 11:34:20 Player: BUDA Result: Destroyed by as-98934 with Assembled Blade Performance ------------- Evolutions (1) 500 Regions Visited (3) 600 Robots Destroyed (36) 180 Value Destroyed (925) 925 Prototype IDs (2) 40 Alien Tech Used (0) 0 Bonus (2) 2 TOTAL SCORE: 2247 Bonus ------- High Alert Combat Kills 2 Cogmind --------- Core Integrity 0/400 Matter 200/300 Energy 33/100 System Corruption 0% Temperature Cool (60) Movement Treading (240) Ox1 Location -9/Mines Parts ------- > --- POWER (1) -------- (None) > --- PROPULSION (2) --- Light Treads Light Treads > --- UTILITY (4) ------ High-capacity Storage Unit Improved Light Armor Plating > --- WEAPON (2) ------- Improved EM Shotgun Light Assault Rifle > --- INVENTORY (20) --- Ion Engine Light Ion Engine Light Nuclear Core Light Treads Armored Wheel Large Storage Unit Shield Generator Shield Generator Improved Medium Laser Improved Light Cannon Improved Light Cannon Rocket Launcher Rocket Launcher Rocket Launcher Datajack Datajack Mace Peak State ------------ > --- POWER ------------ Improved Ion Engine > --- PROPULSION ------- Light Treads Light Treads > --- UTILITY ---------- Heat Sink Heat Sink High-capacity Storage Unit Hardened Light Armor Plating > --- WEAPON ----------- Improved Medium Laser Shotgun > --- INVENTORY -------- Ion Engine Light Ion Engine Light Nuclear Core Light Treads Light Treads Light Treads Armored Wheel Large Storage Unit Shield Generator Shield Generator Improved EM Shotgun Light Assault Rifle Light Assault Rifle Rocket Launcher Rocket Launcher Rocket Launcher Datajack Datajack Mace [Rating: 17] Favorites ----------- Power Improved Ion Engine Engine Improved Ion Engine Power Core Light Nuclear Core Propulsion Light Treads Treads Light Treads Wheel Wheel Utility Heat Sink Device Heat Sink Storage High-capacity Storage Unit Processor Improved Targeting Computer Protection Light Armor Plating Weapon Small Laser Energy Gun Small Laser Energy Cannon Beam Cannon Ballistic Gun Shotgun Ballistic Cannon Improved Light Cannon Build | -11 -10 -9 -9 ------- Run | Yrd Mat Mat Min Slots Evolved 2 | . . 2 . Power . | . . . . Propulsion . | . . . . Utility 2 | . . 2 . Weapon . | . . . . Parts Attached 38 | 6 5 20 7 Power 4 | 1 1 2 . Engine 3 | 1 . 2 . Core 1 | . 1 . . Reactor . | . . . . Propulsion 10 | 2 1 6 1 Treads 8 | 2 1 4 1 Leg . | . . . . Wheel 2 | . . 2 . Hover . | . . . . Flight . | . . . . Utility 13 | 1 3 7 2 Device 4 | . 2 2 . Storage 3 | 1 1 1 . Processor 1 | . . 1 . Hackware . | . . . . Protection 5 | . . 3 2 Artifact . | . . . . Weapon 11 | 2 . 5 4 Energy Gun 4 | 1 . 2 1 Energy Cannon 1 | . . 1 . Ballistic Gun 4 | 1 . 2 1 Ballistic Cannon 2 | . . . 2 Launcher . | . . . . Special Weapon . | . . . . Impact Weapon . | . . . . Slashing Weapon . | . . . . Piercing Weapon . | . . . . Special Melee Weapon . | . . . . Unidentified Prototypes 2 | . . 2 . Parts Lost 16 | . . 9 7 Power 1 | . . . 1 Propulsion 4 | . . 3 1 Utility 8 | . . 4 4 Weapon 3 | . . 2 1 Highest Loss Streak 7 | . . 4 7 To Critical Strikes 1 | . . 1 . Average Slot Usage (%) 98 | . 99 98 94 Engine 8 | . 5 8 9 Core 3 | . 8 2 . Treads 19 | . 28 16 22 Wheel 3 | . . 5 . Device 17 | . 13 18 17 Storage 12 | . 14 12 11 Processor 1 | . . 1 . Protection 8 | . . 10 11 Energy Gun 10 | . 14 9 10 Energy Cannon 1 | . . 2 . Ballistic Gun 11 | . 14 10 9 Peak Build Rating 17 | 6 12 17 17 Average Rating 13 | 4 9 14 16 On Entrance 8 | . 6 12 17 Naked Turns . | . . . . Heaviest Build 62 | 13 19 62 60 Greatest Support 40 | 40 40 40 40 Greatest Overweight (x) 3 | . . 3 1 Average Overweight (x) . | . . 1 1 Largest Inventory Capacity 20 | 8 10 20 20 Average Capacity 16 | 6 9 19 20 Most Carried 20 | 4 10 20 20 Average Carried 13 | 2 8 14 19 Final Capacity 20 | 8 10 20 20 Final Carried 20 | 4 10 20 17 Class Distribution -------------------- 65% | Scavenger-Mutant 34% | Mutant Dominant Class ---------------- Mutant | -10/Materials Scavenger-Mutant | -9/Materials Scavenger-Mutant | -9/Mines Resources | -11 -10 -9 -9 ----------- Run | Yrd Mat Mat Min Matter Collected 734 | 107 272 336 19 Remotely . | . . . . Salvage Created 1302 | . 293 929 80 Parts 92 | . 23 64 5 Haulers Intercepted 4 | . 2 2 . Recyclers Shooed 1 | . . 1 . Parts Field Recycled . | . . . . Retrieved Matter . | . . . . Parts Self-Destructed . | . . . . Prevented . | . . . . Kills | -11 -10 -9 -9 ------- Run | Yrd Mat Mat Min Combat Hostiles Destroyed 30 | . 3 22 5 Guns 21 | . 3 17 1 Cannons 9 | . . 5 4 Classes Destroyed 7 | . 3 2 2 Hauler 4 | . 2 2 . Watcher 6 | . 3 3 . Swarmer 8 | . . 8 . Grunt 10 | . 3 7 . Sentry 7 | . . 7 . Demolisher 1 | . . . 1 Assembled 4 | . . . 4 Best Kill Streak 5 | . 2 4 5 Combat Bots Only 5 | . 2 4 5 Max Kills in Single Turn 2 | . 1 2 1 Gunslinging 1 | . . 1 . Exploded . | . . . . Melee . | . . . . Uniques/NPCs Destroyed . | . . . . Combat | -11 -10 -9 -9 -------- Run | Yrd Mat Mat Min Hostile Shots Fired 172 | . 19 112 41 Missed 31 | . 4 21 6 Damage Taken 2381 | . 186 1199 996 Core 438 | . 24 175 239 Absorbed by Shields . | . . . . Core Remaining (%) 95 | 100 90 . . Volleys Fired 117 | . 23 74 20 Largest 2 | . 2 2 2 Hottest 100 | . 60 100 95 Shots Fired 227 | . 46 142 39 Gun 187 | . 46 117 24 Cannon 40 | . . 25 15 Launcher . | . . . . Special . | . . . . Kinetic 95 | . 23 52 20 Thermal 131 | . 23 90 18 Explosive . | . . . . Electromagnetic 1 | . . . 1 Robot Hit Streak 22 | . 8 22 3 Robot Miss Streak 5 | . 3 5 3 Penetration Max . | . . . . Secondary Targets 4 | . 1 3 . Max Gunslinging Chain 1 | . 1 1 . Shots Hit Robots 152 | . 28 101 23 Core Hits 71 | . 14 44 13 Critical Kills 2 | . 1 1 . Critical Parts Destroyed 1 | . . 1 . Critical Strikes 7 | . 1 3 3 Burn 3 | . . 1 2 Destroy 3 | . 1 2 . Blast 1 | . . . 1 Melee Attacks . | . . . . Impact . | . . . . Slashing . | . . . . Piercing . | . . . . Sneak Attacks . | . . . . Combat Hostiles . | . . . . Follow-up Attacks . | . . . . Damage Inflicted 2176 | . 356 1360 460 Guns 1620 | . 356 991 273 Cannons 552 | . . 365 187 Explosions . | . . . . Melee . | . . . . Ramming 4 | . . 4 . Kinetic 955 | . 187 522 246 Thermal 1207 | . 169 834 204 Explosive . | . . . . Electromagnetic 10 | . . . 10 Impact . | . . . . Slashing . | . . . . Piercing . | . . . . Highest Corruption . | . . . . Average Corruption . | . . . . Corruption Purged . | . . . . Corruption Blocked . | . . . . Overload Shots . | . . . . Overflow Damage . | . . . . Projectiles . | . . . . Explosions . | . . . . Melee . | . . . . Knockbacks 2 | . . . 2 Impact . | . . . . Kinetic 2 | . . . 2 Secondary . | . . . . Self-Inflicted Damage 8 | . . 8 . Shots 1 | . . 1 . Rammed 4 | . . 4 . Targets Rammed 4 | . . 4 . Kicked . | . . . . Crushed . | . . . . Highest Temperature 537 | . . 114 537 Average Temperature 166 | . . 61 244 Received Heat Transfer 713 | . 108 465 140 Effects 6 | . . . 6 Interference 1 | . . . 1 Short Circuit 3 | . . . 3 Damage (minor) 1 | . . . 1 Damage (core) 1 | . . . 1 Siege Activations . | . . . . Robots Corrupted . | . . . . Combat Hostiles . | . . . . Parts Fried . | . . . . Impact Corruptions . | . . . . Robots Melted . | . . . . Combat Hostiles . | . . . . Parts Melted 4 | . . 4 . Heat Transferred 2890 | . 400 1898 592 Parts Sabotaged . | . . . . Parts Stolen . | . . . . Parts Stripped . | . . . . Power Chain Reactions . | . . . . Alert | -11 -10 -9 -9 ------- Run | Yrd Mat Mat Min Peak Influence 405 | . 99 405 124 Initial 124 | . . 29 124 Average 180 | . 41 256 118 Maximum Alert Level 2 | . . 2 . Low Security (%) 64 | 100 100 41 100 Level 1 28 | . . 47 . Level 2 6 | . . 10 . Level 3 . | . . . . Level 4 . | . . . . Level 5 . | . . . . High Security . | . . . . Max Security . | . . . . Squads Dispatched 3 | . . 3 . Investigation 1 | . . 1 . Extermination . | . . . . Reinforcement 2 | . . 2 . Assault . | . . . . Garrison . | . . . . Intercept . | . . . . Searches Triggered . | . . . . Construction Impeded . | . . . . Haulers Reinforced . | . . . . Active Scanning Responses . | . . . . Cargo Convoy Interrupts . | . . . . Stealth | -11 -10 -9 -9 --------- Run | Yrd Mat Mat Min Distress Signals 1 | . 1 . . Communications Jammed . | . . . . Distress Signals . | . . . . Times Spotted 57 | . 11 36 10 Peak Tracking Total 9 | . 3 9 6 Tactical Retreats 3 | . . 3 . Traps | -11 -10 -9 -9 ------- Run | Yrd Mat Mat Min Traps Triggered 1 | . . 1 . Indirectly . | . . . . Trap Hack Attempts . | . . . . Triggered . | . . . . Disarmed . | . . . . Reprogrammed . | . . . . Reused . | . . . . Traps Extracted . | . . . . Installed . | . . . . Triggered . | . . . . Machines | -11 -10 -9 -9 ---------- Run | Yrd Mat Mat Min Machines Disabled 2 | . 1 1 . Max in Single Turn 1 | . 1 1 . Machines Repaired . | . . . . Machines Dismantled . | . . . . Machines Sabotaged . | . . . . Overloaded Fab Kills . | . . . . Hacking | -11 -10 -9 -9 --------- Run | Yrd Mat Mat Min Machines Accessed 11 | . 5 6 . Terminals 11 | . 5 6 . Fabricators . | . . . . Repair Stations . | . . . . Recycling Units . | . . . . Scanalyzers . | . . . . Garrison Access . | . . . . Total Hacks 35 | . 11 24 . Successful 19 | . 3 16 . Failed 16 | . 8 8 . Catastrophic 5 | . 2 3 . Database Lockouts . | . . . . Manual 25 | . 4 21 . Terminals 35 | . 11 24 . Fabricators . | . . . . Repair Stations . | . . . . Recycling Units . | . . . . Scanalyzers . | . . . . Garrison Access . | . . . . Terminal Hacks 6 | . 2 4 . Branch Access Points 1 | . . 1 . Unreport Threat 1 | . 1 . . Locate Traps 1 | . . 1 . Dispatch Records 1 | . . 1 . Recall Reinforcements 1 | . . 1 . Zone Layout 1 | . 1 . . Fabricator Hacks . | . . . . Repair Station Hacks . | . . . . Recycling Unit Hacks . | . . . . Scanalyzer . | . . . . Garrison Access Hacks . | . . . . Unauthorized Hacks 13 | . 1 12 . Terminals 13 | . 1 12 . Track 5 | . . 5 . Botnet 7 | . 1 6 . Operators 1 | . . 1 . Fabricators . | . . . . Repair Stations . | . . . . Recycling Units . | . . . . Scanalyzers . | . . . . Garrison Access . | . . . . Data Cores Recovered . | . . . . Used . | . . . . Hacking Detections 8 | . 4 4 . Full Trace Events . | . . . . Feedback Events . | . . . . Feedback Blocked . | . . . . Robot Schematics Acquired . | . . . . Robots Built . | . . . . Authchips . | . . . . Time . | . . . . Total Robot Build Rating . | . . . . Part Schematics Acquired . | . . . . Parts Built . | . . . . Authchips . | . . . . Time . | . . . . Total Part Build Rating . | . . . . Parts Repaired . | . . . . Time . | . . . . Parts Recycled . | . . . . Recycled Matter . | . . . . Retrieved Matter . | . . . . Retrieved Components . | . . . . Parts Scanalyzed . | . . . . Part Schematics Acquired . | . . . . Parts Damaged . | . . . . Bothacking | -11 -10 -9 -9 ------------ Run | Yrd Mat Mat Min Used RIF Installer . | . . . . Robots Hacked . | . . . . Non-combat . | . . . . Combat . | . . . . Robot Hacks Applied . | . . . . Relay Couplers Released . | . . . . Fabnet Peak Effective % . | . . . . Robots Rewired . | . . . . Allies Hacked . | . . . . Hacks Repelled . | . . . . Allies | -11 -10 -9 -9 -------- Run | Yrd Mat Mat Min Total Allies . | . . . . Largest Group . | . . . . Highest-Rated Group . | . . . . Highest-Rated Ally . | . . . . Total Orders . | . . . . Ally Attacks . | . . . . Total Damage . | . . . . Kills . | . . . . Allies Corrupted . | . . . . Allies Melted . | . . . . Intel | -11 -10 -9 -9 ------- Run | Yrd Mat Mat Min Robot Analysis Total . | . . . . Derelict Logs Recovered 1 | . . . 1 Drone Launches . | . . . . Drone Recoveries . | . . . . Exploration | -11 -10 -9 -9 ------------- Run | Yrd Mat Mat Min Turns Passed 2694 | 76 652 1642 324 Spaces Moved 1163 | 43 353 660 107 Core 4 | 4 . . . Treads 925 | 39 353 426 107 Legs . | . . . . Wheels 234 | . . 234 . Hover . | . . . . Flight . | . . . . Fastest Speed 50 | 50 160 110 240 Average Speed 185 | 149 160 192 240 Slowest Speed 240 | 160 160 240 240 Overloaded Moves . | . . . . Propulsion Burnouts . | . . . . Robots Hopped . | . . . . Cave-ins Triggered . | . . . . Exploration Rate (%) 39 | 5 52 60 39 Regions Visited 3 Branch Regions 1 Pre-discovered Areas . | . . . . Known Exits Taken 1 | . . 1 . Unknown Exits Taken 2 | 1 1 . . Scrap Searched 2 | . . . 2 Spaces Dug . | . . . . Terrain Destroyed . | . . . . Melee . | . . . . Projectile . | . . . . AOE . | . . . . Terrain Rammed . | . . . . Walls Destroyed . | . . . . Machines Disabled . | . . . . Actions | -11 -10 -9 -9 --------- Run | Yrd Mat Mat Min Total 1468 | 52 396 884 136 Wait 103 | . 2 101 . Move 1160 | 42 352 659 107 Hop . | . . . . Pick Up 32 | 4 8 19 1 Fast Attach 15 | 6 1 7 1 Attach 13 | . . 10 3 Detach 1 | . . 1 . Swap 10 | . 4 3 3 Drop 13 | . 6 6 1 Fire 117 | . 23 74 20 Melee . | . . . . Ram . | . . . . Kick . | . . . . Crush 4 | . . 4 . Escape Stasis . | . . . . Rewire . | . . . . Trap . | . . . . Miscellaneous . | . . . . Route ------- -11/Scrapyard -10/Materials (discovered 2 exits: *Mat / [*Min]) -9/Materials (discovered 4 exits: [*Mat x2] / *Min x2) -9/Mines History --------- Turn | Location | Event 21 | -11/Scrapyard | Discovered new exit (range 16) 77 | -11/Scrapyard | Entered Materials 303 | -10/Materials | Build established: Mutant 339 | -10/Materials | Discovered new exit (range 12) 684 | -10/Materials | Discovered new exit (range 12) 729 | -10/Materials | Entered another Materials area 729 | -9/Materials | Evolved 2 slots: Utility x2 750 | -9/Materials | Build established: Scavenger-Mutant 1105 | -9/Materials | Build established: Mutant 1162 | -9/Materials | Discovered new exit (range 8) 1250 | -9/Materials | Lost 4 parts (2n2u) 1298 | -9/Materials | Identified exit to Mines 1530 | -9/Materials | Build established: Scavenger-Mutant 1575 | -9/Materials | Discovered new exit (range 6) 1864 | -9/Materials | Discovered new exit (range 16) 2371 | -9/Materials | Entered Mines 2378 | -9/Mines | Met a Derelict bent on vengeance 2386 | -9/Mines | Learned Materials emergency access door positions 2602 | -9/Mines | Assembled infested the area 2622 | -9/Mines | Core integrity fell below 50% 2661 | -9/Mines | Core integrity fell below 20% 2695 | -9/Mines | Destroyed by as-98934 with Assembled Blade Last Messages --------------- 02675_ U-05 Engineer lays Concrete. 02676_ Overheating: Broken Imp. Light Cannon damaged (-87). 02676_ U-05 Engineer lays Concrete. 02676_ K-01 Serf collects debris. 02677_ U-05 Engineer lays Concrete. 02678_ as-78100 destroyed. 02679_ U-05 Engineer lays Concrete. 02680_ Overheating: System interference. 02680_ Lgt. Assault Rifle temporarily disabled. 02680_ U-05 Engineer lays Concrete. 02680_ K-01 Serf collects debris. 02680_ Acquired 8 matter. 02681_ U-05 Engineer lays Concrete. 02681_ U-05 Engineer destroyed. 02683_ K-01 Serf collects debris. 02684_ Acquired 1 matter. 02685_ Hrd. Light Armor Plating destroyed. 02686_ K-01 Serf collects debris. 02692_ Acquired Imp. Light Armor Plating. Map ----- +----------------------------------------------------+ | ?????????????????????????????????# """ #? | | ?????????????????????????????????# """ #? | | ?????????????????????????????????# """ ##? | | ?????????????????????????????????## ### ##?? | | ??????????????????????????????????####?## ###??? | | ????????????????????????????????????????## #????? | | ?????????????????????????????????????????# #????? | | ?????????????????????????????????????????# #????? | | ?????????????????????????????????????????# #????? | | ?????????????????????????######??????????# #????? | | ????????????????????????# ####???????# #????? | | ??????????????????????## ##??????# #????? | | ??????????????????????# #??????# ###??? | | ??????????????????????# #??????# #??? | | ?????????????????##???# ???????# #??? | | ????????????###### #### ????????### #??? | | ???????????## # #????????????# #??? | | ???????????# #?????????????# #??? | | ???????????# = #???????????????# #??? | | ???????????# *%| #????????????????# #??? | | ???????????# ############????### #?? | | ???????????## #???## ## | | ????????????### % #??## | | ??????????????# %! ######### #?## | | ??????????????### % % ##??????# ### | | ???????????????## %a@#??????# # | | ???????????????# % %a %=????## %!## | | ??????????????# % %!!#???# # #?# | | ???????????? !%]% ### #?? | | ???????????% **=% t ##?# #?? | | ??????????#### ## ### ### #??# #??# | | ?????????????## #####?#u#?## #??# #???# | | ??????????????### #???????#??## ##??# #???? | | ??????????????? k ???????????####???# #????? | | ?????????????? % ??????????????????# #????? | | ??????????????#### % ??????????????????# #????? | | ????????????????? #??????????????????# #????? | | ???????????????? ???????????????????# #????? | | ?????????????????????????????????????????? ????? | | ?????????????????????????????????????????? ????? | | ??????????????????????????????????????????###????? | | ?????????????????????????????????????????????????? | | ?????????????????????????????????????????????????? | | ?????????????????????????????????????????????????? | | ?????????????????????????????????????????????????? | | ?????????????????????????????????????????????????? | | | | | | | | | +----------------------------------------------------+ Best States ------------- Heat Dissipation 52 Energy Generation 14 Energy Capacity 265 Matter Stores 300 Matter Capacity 300 Sight Range 16 Terrain Scan Density 10 Armor Coverage 300 Evasion (%) 40 Targeting Accuracy 6 Recoil Reduction 2 Item Schematics ----------------- None Robot Schematics ------------------ None Fabricated ------------ Nothing Alien Tech Used ----------------- None Achievements -------------- None Challenges ------------ None Game ------ Seed ShadePotentialLog Manual? 0 Play Time 00:20:45 Cumulative 60.2 hours Start 2024.11.15 @ 11:15:36 End 2024.11.15 @ 11:34:20 Sessions 1 Manual Loads 0 Difficulty Rogue Special Mode None Game No. 55 Rogue 55 Adventurer 0 Explorer 0 Win Type - Total 0 Types 0/0/0/0/0/0/0/0/0 Lore% 42 Gallery% 50 Achievement% 43 Wizard Run 0 Options --------- Layout 1 ASCII 0 Keyboard 0 Movement Numpad Keybinds 0 Fullscreen 1 Font 24/Smallcaps Map View 50x35 Zoom Use 0% Tactical HUD 1 Map Filters NONE Filters NONE Steam 1 RUN: d5745686-ba65-46e8-bb9f-787045a87400